Cogmind - Beta 16 @@@ ROGUE MODE // 2025.12.19 @ 19:47:49 Player: laeb2 Result: Self-destructed Performance ------------- Evolutions (6) 3000 Regions Visited (13) 2600 Robots Destroyed (282) 1410 Value Destroyed (12635) 12635 Prototype IDs (13) 260 Alien Tech Used (0) 0 Bonus (5688) 5688 TOTAL SCORE: 25593 Bonus ------- High Alert Combat Kills 2292 Follower Combat Kills 1363 Entered Garrisons 600 Used RIF Installer 1500 Friendly Fire -67 Cogmind --------- Core Integrity 635/1150 Matter 267/300 Energy 100/100 System Corruption 11% Temperature Cool (0) Movement Core (1550) Ox30 Location -4/Factory Parts ------- > --- POWER (2) -------- (None) > --- PROPULSION (3) --- Advanced Medium Treads > --- UTILITY (10) ----- Huge Storage Unit Improved Core Shielding Hardened Medium Armor Plating Graphene Brace Relay Coupler [Duelist] (19) Relay Coupler [Sentry] (2) > --- WEAPON (4) ------- (None) > --- INVENTORY (25) --- Light Quantum Reactor Light Quantum Reactor Huge Storage Unit Advanced Matter Compressor (400) Improved Core Shielding Improved Medium Armor Plating Relay Coupler [NC] (25) Relay Coupler [Demolisher] (26) Relay Coupler [Specialist] (25) Relay Coupler [Specialist] (21) Relay Coupler [Heavy] (20) Relay Coupler [Heavy] (18) Relay Coupler [Heavy] (16) Relay Coupler [Behemoth] (10) Long-range Tractor Beam Enhanced Nova Cannon Enhanced Nova Cannon Enhanced Hardcell Cannon Improved Remote Datajack Plasma Cutter Ripper Peak State ------------ > --- POWER ------------ Neutrino Core Light Antimatter Reactor > --- PROPULSION ------- Advanced Heavy Siege Treads Compact Wheel > --- UTILITY ---------- Huge Storage Unit Improved Light Armor Plating Improved Medium Armor Plating Improved Medium Armor Plating Improved Medium Armor Plating Graphene Brace Improved Remote Force Field Relay Coupler [Swarmer] Relay Coupler [Sentry] Relay Coupler [Hunter] > --- WEAPON ----------- KE Penetrator KE Penetrator Railgun Improved Remote Datajack > --- INVENTORY -------- Light Quantum Reactor Light Quantum Reactor Advanced Medium Treads Huge Storage Unit Advanced Matter Compressor Medium Insulated Plating Relay Coupler [NC] Relay Coupler [Grunt] Relay Coupler [Duelist] Relay Coupler [Demolisher] Relay Coupler [Specialist] Relay Coupler [Specialist] Relay Coupler [Heavy] Relay Coupler [Heavy] Relay Coupler [Heavy] Relay Coupler [Behemoth] High-powered Tractor Beam Enhanced Nova Cannon Enhanced Nova Cannon Enhanced Hardcell Cannon Enhanced Hardcell Cannon Enhanced Hardcell Cannon Improved Remote Datajack Plasma Cutter Ripper [Rating: 113] Favorites ----------- Power Light Angular Momentum Engine Engine Light Angular Momentum Engine Power Core Neutrino Core Reactor Particle Reactor Propulsion Armored Huge Wheel Treads Light Treads Wheel Armored Huge Wheel Utility Huge Storage Unit Device Cooling System Storage Huge Storage Unit Processor Improved Target Analyzer Hackware Relay Coupler [Sentry] Protection Improved Medium Armor Plating Weapon KE Penetrator Energy Gun Gatling Laser Energy Cannon Heavy Ion Cannon Ballistic Gun KE Penetrator Ballistic Cannon Magnetic Acceleration Cannon Launcher Rocket Launcher Special Weapon Improved Remote Datajack Slashing Weapon Ripper Build | -11 -10 -9 -9 -8 -7 -7 -6 -5 -5 -5 -4 -4 -4 ------- Run | Yrd Mat Mat Sto Mat Fac Gar Fac Fac Gar Ext Fac Gar Fac Slots Evolved 12 | . . 2 . 2 2 . 2 2 . . 2 . . Power 1 | . . . . . . . . 1 . . . . . Propulsion 1 | . . . . 1 . . . . . . . . . Utility 8 | . . 1 . 1 1 . 2 1 . . 2 . . Weapon 2 | . . 1 . . 1 . . . . . . . . Parts Attached 195 | 7 6 22 11 21 3 12 12 16 31 8 12 20 14 Power 15 | 1 1 2 1 1 . 2 1 . 4 . . 2 . Engine 8 | 1 1 2 1 1 . . . . 2 . . . . Core 3 | . . . . . . . . . 2 . . 1 . Reactor 4 | . . . . . . 2 1 . . . . 1 . Propulsion 33 | 2 . 3 . 6 1 . 3 3 4 3 3 1 4 Treads 14 | 2 . 2 . 1 . . 2 . 2 2 2 1 . Leg . | . . . . . . . . . . . . . . Wheel 19 | . . 1 . 5 1 . 1 3 2 1 1 . 4 Hover . | . . . . . . . . . . . . . . Flight . | . . . . . . . . . . . . . . Utility 81 | 1 2 8 . 4 1 6 7 8 13 5 5 13 8 Device 22 | . 1 4 . 1 1 1 2 4 3 1 . . 4 Storage 6 | 1 1 1 . . . . 1 . . . 2 . . Processor 3 | . . . . . . . . . 3 . . . . Hackware 23 | . . . . . . 2 . 2 6 4 1 6 2 Protection 27 | . . 3 . 3 . 3 4 2 1 . 2 7 2 Artifact . | . . . . . . . . . . . . . . Weapon 66 | 3 3 9 10 10 1 4 1 5 10 . 4 4 2 Energy Gun 13 | 3 . 1 2 1 . 3 1 . 2 . . . . Energy Cannon 22 | . . 6 5 6 1 . . 3 1 . . . . Ballistic Gun 15 | . 2 2 1 1 . . . . 3 . 2 4 . Ballistic Cannon 5 | . 1 . . . . . . 1 1 . . . 2 Launcher 4 | . . . 2 2 . . . . . . . . . Special Weapon 4 | . . . . . . 1 . . 2 . 1 . . Impact Weapon . | . . . . . . . . . . . . . . Slashing Weapon 3 | . . . . . . . . 1 1 . 1 . . Piercing Weapon . | . . . . . . . . . . . . . . Special Melee Weapon . | . . . . . . . . . . . . . . Unidentified Prototypes 8 | . . 2 3 3 . . . . . . . . . Parts Lost 85 | . 1 4 1 3 . 7 8 3 27 1 3 8 19 Power 8 | . 1 . . . . . 1 . 4 . . . 2 Propulsion 21 | . . 2 . 1 . 1 2 1 6 1 . 1 6 Utility 31 | . . 2 1 1 . 3 2 . 9 . 3 5 5 Weapon 25 | . . . . 1 . 3 3 2 8 . . 2 6 Highest Loss Streak 18 | . 1 4 1 1 . 2 3 3 13 1 2 4 18 To Critical Strikes 1 | . . 1 . . . . . . . . . . . Average Backups 22 | 3 7 18 24 22 22 23 23 24 24 24 24 24 24 Power 2 | . 1 1 2 2 2 3 2 2 2 3 2 2 2 Propulsion 2 | 1 2 5 6 4 3 2 . . . . . 1 1 Utility 10 | . 1 5 6 5 7 7 13 14 14 15 13 10 13 Weapon 6 | . 2 6 9 9 8 8 4 4 4 5 6 8 5 Tool/Special . | . . . . . . . . . . . . . . Unused Backups 57 | . . 6 2 3 1 3 1 5 8 . 5 5 18 Power 8 | . . 1 1 . . 2 . . . . 1 1 2 Propulsion 7 | . . 4 . 2 . . . . . . 1 . . Utility 28 | . . . . . . . 1 5 8 . 1 1 12 Weapon 12 | . . 1 1 1 1 1 . . . . 1 3 3 Tool/Special 2 | . . . . . . . . . . . 1 . 1 Average Slot Usage (%) 87 | . 99 98 99 89 90 89 83 69 76 88 89 92 87 Engine 6 | . 13 10 11 9 7 1 . . 6 11 10 7 . Reactor 1 | . . . . . . 5 6 3 2 . . . 4 Treads 6 | . 28 12 11 1 . 6 5 1 1 2 7 5 4 Wheel 8 | . . 9 11 16 15 7 5 8 7 4 7 5 4 Device 9 | . 13 4 11 11 13 15 20 10 9 8 5 1 5 Storage 7 | . 14 11 11 9 7 7 7 5 5 5 5 5 5 Hackware 8 | . . . . . . 2 6 7 9 24 24 21 20 Protection 12 | . . 16 11 15 15 11 8 15 8 5 7 21 16 Energy Gun 3 | . 14 1 . . . 15 9 2 . . . . . Energy Cannon 10 | . . 24 31 24 30 12 9 3 3 . . . . Ballistic Gun 6 | . 11 6 . 1 . 1 . . 6 16 13 14 13 Special Weapon 1 | . . . . . . . . 2 1 5 4 2 3 Peak Build Rating 113 | 6 9 24 25 40 46 54 64 82 94 86 95 108 113 Average Rating 59 | 5 7 18 24 37 45 50 59 67 72 81 86 99 101 On Entrance 49 | . 6 9 24 25 39 46 54 61 80 81 77 84 105 Avg Prop Armor Cover (%) 7 | . . 9 10 7 . 6 5 3 6 10 9 7 8 Naked Turns . | . . . . . . . . . . . . . . Heaviest Build 197 | 12 32 103 103 121 132 153 143 163 184 122 197 151 166 Greatest Support 80 | 40 40 40 12 40 40 40 28 44 44 46 32 32 80 Greatest Overweight (x) 39 | . . 8 8 4 3 5 5 39 8 7 12 9 10 Average Overweight (x) 4 | . . 5 8 2 3 4 4 4 3 4 4 7 8 Largest Inventory Capacity 25 | 8 15 25 25 25 25 25 25 25 25 25 25 25 25 Average Capacity 23 | 7 14 21 25 25 25 25 25 25 25 25 25 25 25 Most Carried 25 | 5 15 25 25 25 25 25 25 25 25 25 25 25 25 Average Carried 23 | 3 7 19 24 24 24 24 24 24 24 24 24 24 24 Final Capacity 25 | 8 15 25 25 25 25 25 25 25 25 25 25 25 25 Final Carried 25 | 5 15 25 25 25 25 25 25 25 25 25 25 25 21 Class Distribution -------------------- 38% | Bothacker-Tank 31% | Tank 13% | Bothacker-Mutant 6% | Bothacker-Gunner 6% | Mutant Dominant Class ---------------- Mutant | -10/Materials Tank | -9/Materials Tank | -9/Storage Tank | -8/Materials Tank | -7/Factory Tank | -7/Garrison Bothacker-Gunner | -6/Factory Bothacker-Mutant | -5/Factory Bothacker-Tank | -5/Garrison Bothacker-Tank | -5/Extension Bothacker-Tank | -4/Factory Bothacker-Tank | -4/Garrison Bothacker-Tank | -4/Factory Resources | -11 -10 -9 -9 -8 -7 -7 -6 -5 -5 -5 -4 -4 -4 ----------- Run | Yrd Mat Mat Sto Mat Fac Gar Fac Fac Gar Ext Fac Gar Fac Matter Collected 6911 | 270 337 322 163 427 20 325 163 573 1056 492 851 989 923 Remotely . | . . . . . . . . . . . . . . Salvage Created 13224 | 214 130 1111 1614 2167 134 988 650 702 1938 259 567 800 1950 Parts 586 | 14 11 61 104 116 5 27 12 16 74 8 28 37 73 Haulers Intercepted 10 | . . 4 3 3 . . . . . . . . . Recyclers Shooed 14 | . . . . 1 . . 1 5 . 1 . . 6 Parts Field Recycled . | . . . . . . . . . . . . . . Retrieved Matter . | . . . . . . . . . . . . . . Parts Self-Destructed . | . . . . . . . . . . . . . . Prevented . | . . . . . . . . . . . . . . Parts Restored 1 | . . . . . . . . 1 . . . . . Broken 1 | . . . . . . . . 1 . . . . . Kills | -11 -10 -9 -9 -8 -7 -7 -6 -5 -5 -5 -4 -4 -4 ------- Run | Yrd Mat Mat Sto Mat Fac Gar Fac Fac Gar Ext Fac Gar Fac Combat Hostiles Destroyed 204 | . 8 12 34 36 2 23 14 4 34 2 6 13 16 Melee 3 | . . . . . . . 1 . 2 . . . . Guns 77 | . 6 6 . 1 . 16 4 . 14 2 6 13 9 Cannons 88 | . 2 5 27 23 2 6 6 1 10 . . . 6 AOE 29 | . . . 7 12 . . 3 2 4 . . . 1 Classes Destroyed 20 | 3 2 3 5 . . 2 2 1 . . . 2 . Worker 7 | 2 . . 1 1 . . . 2 . . 1 . . Builder 11 | . . . 3 4 . . . . . . . . 4 Tunneler 5 | 5 . . . . . . . . . . . . . Hauler 10 | . . 4 3 3 . . . . . . . . . Recycler 24 | 1 . 4 1 6 . . . 4 . 1 1 . 6 Mechanic 4 | . . . 1 . . 1 . . . . . . 2 Operator 4 | . . . 1 3 . . . . . . . . . Watcher 10 | . . 3 2 3 . . . . . 1 1 . . Swarmer 49 | . 6 3 4 11 . 4 2 . 7 . 2 6 4 Cutter 5 | . . . . . . 1 . . 4 . . . . Saboteur 1 | . . . . . . . 1 . . . . . . Grunt 95 | . 2 3 20 19 . 11 9 2 16 1 2 2 8 Brawler 7 | . . . 3 2 . . 1 . . . . . 1 Duelist 3 | . . . . . . . 1 . . 1 . . 1 Protector 2 | . . . 1 1 . . . . . . . . . Sentry 29 | . . 6 6 3 2 6 . . 3 . . 3 . Hunter 4 | . . . . . . 1 . . . . 1 1 1 Programmer 10 | . . . . . . . . 2 4 . 2 . 2 Behemoth 1 | . . . . . . . . . . . . 1 . Striker 1 | . . . . . . . . . . . . 1 . Best Kill Streak 13 | 6 5 4 13 9 2 7 8 3 9 2 2 4 6 Combat Bots Only 10 | . 5 4 10 7 2 7 8 2 9 2 2 4 4 Max Kills in Single Turn 7 | 2 1 2 7 3 1 2 2 2 2 1 1 1 3 Gunslinging 1 | . . . . . . 1 . . . . . . 1 Exploded 6 | . . . 6 3 . . 2 1 2 . . . 1 Melee 1 | . . . . . . . 1 . 1 . . . . Uniques/NPCs Destroyed . | . . . . . . . . . . . . . . Combat | -11 -10 -9 -9 -8 -7 -7 -6 -5 -5 -5 -4 -4 -4 -------- Run | Yrd Mat Mat Sto Mat Fac Gar Fac Fac Gar Ext Fac Gar Fac Hostile Shots Fired 1441 | . 65 84 105 123 24 221 81 97 201 17 40 100 283 Missed 416 | . 13 27 28 30 11 69 22 29 52 6 9 27 93 Hits 1025 | . 52 57 77 93 13 152 59 68 149 11 31 73 190 Melee 18 | . . . . . . 3 4 . 7 . . . 4 Projectile 1007 | . 52 57 77 93 13 149 55 68 142 11 31 73 186 AOE 3 | . . . . . . 1 . . 2 . . . . Critical Strikes 34 | . . 2 . 3 . 2 3 4 7 . 2 3 8 Actively Blocked 10 | . . . . . . . . . . . 1 1 8 Damage Taken 16139 | . 491 602 889 1450 86 1434 1146 1260 3299 189 551 1578 3164 Core 1734 | . 88 134 143 159 10 112 58 20 495 . 29 92 394 Absorbed by Shields 494 | . . . . . . . . . . . . . 494 Redirected to Shielding 432 | . . 6 56 84 . 47 . . 17 . 47 158 17 Ignored by Resistances 397 | . . . . . . 137 . 101 45 10 104 . . Core Remaining (%) 69 | 100 64 . 30 71 . 82 93 . . 48 . . . Volleys Fired 684 | 16 38 45 55 90 2 57 32 49 83 42 31 73 71 Largest 4 | 2 2 3 3 3 4 4 4 3 4 3 4 3 3 Hottest 290 | 100 100 204 204 206 260 290 290 243 287 94 129 101 126 Shots Fired 1470 | 32 61 131 141 215 8 152 72 59 165 65 62 166 141 Gun 684 | 32 41 66 . 17 . 82 36 7 74 35 48 149 97 Cannon 645 | . 20 65 138 190 8 67 30 30 75 . . . 22 Launcher 36 | . . . 3 8 . . 6 13 6 . . . . Special 105 | . . . . . . 3 . 9 10 30 14 17 22 Kinetic 593 | . 46 60 . 17 . 10 . 15 94 35 48 149 119 Thermal 612 | 32 15 48 138 141 8 139 66 12 13 . . . . Explosive 23 | . . . 3 6 . . 3 11 . . . . . Electromagnetic 137 | . . 23 . 51 . . 3 12 48 . . . . Robot Hit Streak 22 | 5 6 10 22 11 11 19 11 10 12 13 13 19 7 Robot Miss Streak 8 | 3 5 4 3 4 1 4 2 2 8 3 3 4 5 Penetration Max 1 | . . . . . . . . . 1 1 1 . 1 Secondary Targets 15 | . 1 1 . . . 2 2 . 2 . . 3 4 Max Gunslinging Chain 1 | . 1 1 . . . 1 1 . 1 . . 1 1 Shots Hit Robots 894 | 15 34 69 75 126 6 102 57 46 113 45 42 82 82 Core Hits 482 | 9 13 25 55 75 4 61 40 22 57 9 11 26 75 Critical Kills 6 | . . . . . . . . . 2 . 1 2 1 Critical Parts Destroyed 7 | . . . . . . . . . 3 1 . 1 2 Critical Strikes 22 | 4 . . . . . . . . 9 1 1 4 3 Burn 4 | 4 . . . . . . . . . . . . . Destroy 13 | . . . . . . . . . 5 1 1 3 3 Corrupt 1 | . . . . . . . . . 1 . . . . Sever 4 | . . . . . . . . . 3 . . 1 . Melee Attacks 62 | . . . . . . . . 6 23 . 4 25 4 Impact . | . . . . . . . . . . . . . . Slashing 62 | . . . . . . . . 6 23 . 4 25 4 Piercing . | . . . . . . . . . . . . . . Sneak Attacks 5 | . . . . . . . . 2 . . 3 . . Combat Hostiles . | . . . . . . . . . . . . . . Follow-up Attacks . | . . . . . . . . . . . . . . Damage Inflicted 25974 | 211 419 1167 2505 4454 180 2563 1944 1669 3884 452 1004 2393 3129 Guns 9664 | 211 215 395 . 183 . 1639 891 186 1047 452 758 1745 1942 Cannons 10058 | . 202 772 1793 2994 180 924 566 686 1300 . . . 641 Explosions 4555 | . . . 712 1239 . . 487 670 901 . . . 546 Melee 1619 | . . . . . . . . 127 636 . 208 648 . Ramming 78 | . 2 . . 38 . . . . . . 38 . . Kinetic 8261 | . 291 327 . 183 . 167 . 261 1494 452 758 1745 2583 Thermal 9637 | 211 126 556 1793 2214 180 2396 1457 278 426 . . . . Explosive 2285 | . . . 712 830 . . 288 455 . . . . . Electromagnetic 4094 | . . 284 . 1189 . . 199 548 1328 . . . 546 Impact . | . . . . . . . . . . . . . . Slashing 1619 | . . . . . . . . 127 636 . 208 648 . Piercing . | . . . . . . . . . . . . . . Highest Corruption 10 | . . . 1 . . . . 8 5 5 5 5 10 Average Corruption 4 | . . . 1 . . . . 7 3 5 2 5 5 Corruption Purged 13 | . . . . . . . . 4 1 . . . 8 Corruption Blocked . | . . . . . . . . . . . . . . Effects 160 | . . . 7 . . . . 19 46 18 1 40 29 Message Errors 37 | . . . 1 . . . . 4 16 3 . 6 7 Matter Fused 33 | . . . 1 . . . . 4 12 5 1 7 3 Heat Flow Errors 21 | . . . 1 . . . . 4 4 4 . 5 3 Energy Discharges 18 | . . . 1 . . . . 1 4 2 . 7 3 Parts Rejected 2 | . . . . . . . . . . . . 1 1 Data Loss (minor) 18 | . . . . . . . . 2 8 1 . 2 5 Data Loss (major) 6 | . . . 1 . . . . 1 . 1 . 2 1 Misfires 6 | . . . . . . . . 1 2 . . 2 1 Alerts 5 | . . . 1 . . . . . . 1 . 1 2 Weapon Failures 14 | . . . 1 . . . . 2 . 1 . 7 3 Overload Shots . | . . . . . . . . . . . . . . Overflow Damage 688 | . . 12 9 200 . 25 . 85 23 . 118 216 . Projectiles 200 | . . 12 2 107 . 25 . 54 . . . . . Explosions 138 | . . . 7 77 . . . 31 23 . . . . Melee 350 | . . . . 16 . . . . . . 118 216 . Knockbacks 20 | . 10 . . . . . . 1 3 . 1 . 5 Impact 1 | . . . . . . . . . . . 1 . . Kinetic 15 | . 7 . . . . . . 1 3 . . . 4 Secondary 4 | . 3 . . . . . . . . . . . 1 Self-Inflicted Damage 247 | . . . . 69 . . 16 24 107 . 19 . 12 Shots 10 | . . . . 1 . . 1 2 5 . . . 1 Rammed 4 | . 1 . . 1 . . . . . . 2 . . Targets Rammed 4 | . 1 . . 1 . . . . . . 2 . . Kicked . | . . . . . . . . . . . . . . Crushed . | . . . . . . . . . . . . . . Highest Temperature 624 | 234 195 445 316 301 148 303 316 624 138 223 122 277 310 Average Temperature 91 | 80 119 89 90 79 75 118 106 170 36 56 48 70 93 Received Heat Transfer 4024 | . 120 153 324 693 18 465 393 288 894 48 78 211 339 Effects 11 | . . 1 . 1 . . . 5 . 2 . . 2 Energy Bleed 1 | . . . . 1 . . . . . . . . . Interference 4 | . . . . . . . . . . 2 . . 2 Matter Decay 1 | . . . . . . . . 1 . . . . . Short Circuit 2 | . . 1 . . . . . 1 . . . . . Damage (minor) 2 | . . . . . . . . 2 . . . . . Damage (major) 1 | . . . . . . . . 1 . . . . . Siege Activations . | . . . . . . . . . . . . . . Martial Activations . | . . . . . . . . . . . . . . Shielding Activations . | . . . . . . . . . . . . . . Robots Disrupted 2 | . . . . . . . . . 1 . . . 1 Combat Hostiles 2 | . . . . . . . . . 1 . . . 1 Robots Corrupted 5 | . . 1 . . . . . . 4 . . . . Combat Hostiles 5 | . . 1 . . . . . . 4 . . . . Parts Fried 20 | . . 1 . 6 . . . 1 12 . . . . Impact Corruptions 1 | . . . . 1 . . . . . . . . . Robots Melted 2 | . . . . . . 1 . 1 . . . . . Combat Hostiles 2 | . . . . . . 1 . 1 . . . . . Parts Melted 41 | 5 . 2 2 12 . 13 4 1 1 . . 1 . Heat Transferred 16887 | 925 370 999 3077 3338 222 4309 2603 511 533 . . . . Parts Sabotaged 4 | . . . . . . . 2 . . . . . 2 Parts Stolen . | . . . . . . . . . . . . . . Parts Stripped . | . . . . . . . . . . . . . . Power Chain Reactions 5 | . . . . 3 . . . . 2 . . . . Alert | -11 -10 -9 -9 -8 -7 -7 -6 -5 -5 -5 -4 -4 -4 ------- Run | Yrd Mat Mat Sto Mat Fac Gar Fac Fac Gar Ext Fac Gar Fac Maximum Alert Level 4 | . . . 3 3 2 4 3 2 4 3 2 4 3 Low Security (%) 23 | 100 100 100 16 . . . . 79 18 . . . . Level 1 11 | . . . 12 39 . 15 . 18 3 . 50 8 . Level 2 35 | . . . 46 18 100 37 79 1 40 81 49 26 69 Level 3 23 | . . . 23 41 . 38 20 . 29 18 . 40 30 Level 4 4 | . . . . . . 8 . . 7 . . 24 . Level 5 . | . . . . . . . . . . . . . . High Security . | . . . . . . . . . . . . . . Max Security . | . . . . . . . . . . . . . . Peak Influence 1455 | 15 135 90 735 1027 506 1145 876 409 1455 763 635 1159 923 Initial 763 | . . 22 7 295 464 298 600 409 14 763 301 372 608 Average 519 | 3 55 34 478 623 463 702 630 122 626 638 426 819 639 Influence Increases 9785 | 40 265 425 1095 1300 62 957 674 213 1791 236 795 947 985 Destroy 0b10 Robot/C 4720 | . 160 240 660 700 40 480 360 80 700 80 340 440 440 Destroy 0b10 Robot/NC 435 | 40 . 55 65 105 . 5 . 25 15 25 25 10 65 Destroy Leader 702 | . 30 74 150 132 20 30 40 10 40 14 82 20 60 Allied During Kill 539 | . . . . . . 15 24 . 1 55 280 91 73 Successful Hack 121 | . . 11 . 16 . 23 2 4 28 37 . . . Disable Machine 330 | . . 15 45 75 . . 30 30 15 15 . . 105 Anti-Garrison Action 1750 | . . . 150 150 . 350 150 . 750 . . 200 . Destroy Structure 513 | . . . 25 77 2 54 23 34 107 10 38 81 62 Lose Combat Pursuer 675 | . 75 30 . 45 . . 45 30 135 . 30 105 180 Influence Decreases 8938 | 40 210 462 414 976 659 238 983 1029 356 1076 878 320 1297 Entered New Map 3830 | . . 33 11 404 559 128 545 427 6 692 314 160 551 Time Decay 3418 | 40 200 389 393 542 100 . 318 402 . 294 294 . 446 Lost Part 850 | . 10 40 10 30 . 70 80 30 270 10 30 80 190 Lost Ally 690 | . . . . . . 40 40 20 80 80 240 80 110 Purge Threat 150 | . . . . . . . . 150 . . . . . Squads Dispatched 38 | . 2 1 7 5 . . 5 3 . 2 5 . 8 Investigation 4 | . 1 . . 1 . . 1 . . 1 . . . Extermination 7 | . . . . . . . 1 2 . . 2 . 2 Reinforcement 10 | . 1 1 2 1 . . . 1 . . 2 . 2 Assault 14 | . . . 2 3 . . 3 . . 1 1 . 4 Garrison 3 | . . . 3 . . . . . . . . . . Intercept . | . . . . . . . . . . . . . . Searches Triggered . | . . . . . . . . . . . . . . Construction Impeded 3 | . . . . . . . . 1 . . 1 . 1 Haulers Reinforced . | . . . . . . . . . . . . . . Active Scanning Responses . | . . . . . . . . . . . . . . Cargo Convoy Interrupts . | . . . . . . . . . . . . . . Stealth | -11 -10 -9 -9 -8 -7 -7 -6 -5 -5 -5 -4 -4 -4 --------- Run | Yrd Mat Mat Sto Mat Fac Gar Fac Fac Gar Ext Fac Gar Fac Distress Signals 17 | . 2 1 3 3 . . . 1 . 3 2 . 2 Communications Jammed . | . . . . . . . . . . . . . . Distress Signals . | . . . . . . . . . . . . . . Times Spotted 353 | . 14 23 41 47 2 27 22 11 46 16 23 32 49 Peak Tracking Total 9 | . 6 5 9 7 1 7 6 5 7 5 5 9 8 Tactical Retreats 26 | . 3 2 . 3 . . 2 2 6 . 2 3 3 Traps | -11 -10 -9 -9 -8 -7 -7 -6 -5 -5 -5 -4 -4 -4 ------- Run | Yrd Mat Mat Sto Mat Fac Gar Fac Fac Gar Ext Fac Gar Fac Traps Triggered 18 | . . . 1 . . 7 . . 4 1 . 5 . Indirectly . | . . . . . . . . . . . . . . Trap Hack Attempts . | . . . . . . . . . . . . . . Triggered . | . . . . . . . . . . . . . . Disarmed . | . . . . . . . . . . . . . . Reprogrammed . | . . . . . . . . . . . . . . Reused . | . . . . . . . . . . . . . . Traps Extracted . | . . . . . . . . . . . . . . Installed . | . . . . . . . . . . . . . . Triggered . | . . . . . . . . . . . . . . Machines | -11 -10 -9 -9 -8 -7 -7 -6 -5 -5 -5 -4 -4 -4 ---------- Run | Yrd Mat Mat Sto Mat Fac Gar Fac Fac Gar Ext Fac Gar Fac Machines Disabled 41 | . . 1 4 6 . 6 3 2 9 1 . 2 7 Max in Single Turn 3 | . . 1 1 1 . 2 1 1 2 1 . 1 3 Garrison Access 3 | . . . 1 1 . . 1 . . . . . . Garrison Relay 13 | . . . . . . 4 . . 6 . . 3 . Phase Generator 2 | . . . . . . 1 . . 1 . . . . Machines Repaired . | . . . . . . . . . . . . . . Machines Dismantled 2 | . . . . . . . . . 1 1 . . . Machines Sabotaged . | . . . . . . . . . . . . . . Overloaded Fab Kills . | . . . . . . . . . . . . . . Hacking | -11 -10 -9 -9 -8 -7 -7 -6 -5 -5 -5 -4 -4 -4 --------- Run | Yrd Mat Mat Sto Mat Fac Gar Fac Fac Gar Ext Fac Gar Fac Machines Accessed 28 | . 3 3 1 3 1 4 1 3 4 4 1 . . Terminals 21 | . 3 3 1 1 . 4 . 1 4 4 . . . Fabricators . | . . . . . . . . . . . . . . Repair Stations . | . . . . . . . . . . . . . . Recycling Units . | . . . . . . . . . . . . . . Scanalyzers 3 | . . . . 1 . . 1 1 . . . . . Garrison Access 4 | . . . . 1 1 . . 1 . . 1 . . Total Hacks 60 | . 9 6 1 10 2 7 4 6 6 8 1 . . Successful 25 | . 2 2 1 4 1 2 2 5 2 3 1 . . Failed 34 | . 7 4 . 6 1 5 1 1 4 5 . . . Catastrophic 4 | . . . . 1 . 1 . . . 2 . . . Database Lockouts 1 | . . . . . . . 1 . . . . . . Manual 6 | . 4 2 . . . . . . . . . . . Terminals 42 | . 9 6 1 2 . 7 . 3 6 8 . . . Fabricators . | . . . . . . . . . . . . . . Repair Stations . | . . . . . . . . . . . . . . Recycling Units . | . . . . . . . . . . . . . . Scanalyzers 11 | . . . . 5 . . 4 2 . . . . . Garrison Access 7 | . . . . 3 2 . . 1 . . 1 . . Terminal Hacks 15 | . 2 2 1 1 . 2 . 2 2 3 . . . Robot Analysis 1 | . 1 . . . . . . . . . . . . Open Door 3 | . . . 1 . . 1 . . . 1 . . . Emergency Access Points 1 | . . . . . . . . . 1 . . . . Unreport Threat 1 | . . . . . . . . 1 . . . . . Locate Traps 3 | . 1 . . 1 . . . . . 1 . . . Dispatch Records 1 | . . 1 . . . . . . . . . . . Hauler Manifests 1 | . . . . . . . . 1 . . . . . Registered Components 2 | . . 1 . . . . . . . 1 . . . Garrison Registry 1 | . . . . . . . . . 1 . . . . Security Stations 1 | . . . . . . 1 . . . . . . . Fabricator Hacks . | . . . . . . . . . . . . . . Repair Station Hacks . | . . . . . . . . . . . . . . Recycling Unit Hacks . | . . . . . . . . . . . . . . Scanalyzer 7 | . . . . 3 . . 2 2 . . . . . Retrieve Study 7 | . . . . 3 . . 2 2 . . . . . Garrison Access Hacks 3 | . . . . . 1 . . 1 . . 1 . . Unlock Access 3 | . . . . . 1 . . 1 . . 1 . . Unauthorized Hacks . | . . . . . . . . . . . . . . Terminals . | . . . . . . . . . . . . . . Fabricators . | . . . . . . . . . . . . . . Repair Stations . | . . . . . . . . . . . . . . Recycling Units . | . . . . . . . . . . . . . . Scanalyzers . | . . . . . . . . . . . . . . Garrison Access . | . . . . . . . . . . . . . . Data Cores Recovered 3 | . . . . 3 . . . . . . . . . Used . | . . . . . . . . . . . . . . Hacking Detections 22 | . 3 3 . 3 1 4 1 2 2 3 . . . Full Trace Events 5 | . 1 . . 2 . . 1 . . 1 . . . Feedback Events . | . . . . . . . . . . . . . . Feedback Blocked . | . . . . . . . . . . . . . . Robot Schematics Acquired . | . . . . . . . . . . . . . . Robots Built . | . . . . . . . . . . . . . . Authchips . | . . . . . . . . . . . . . . Time . | . . . . . . . . . . . . . . Total Robot Build Rating . | . . . . . . . . . . . . . . Part Schematics Acquired . | . . . . . . . . . . . . . . Parts Built . | . . . . . . . . . . . . . . Authchips . | . . . . . . . . . . . . . . Time . | . . . . . . . . . . . . . . Total Part Build Rating . | . . . . . . . . . . . . . . Part Studies Acquired 6 | . . . . 3 . . 1 2 . . . . . Parts Repaired . | . . . . . . . . . . . . . . Time . | . . . . . . . . . . . . . . Parts Recycled . | . . . . . . . . . . . . . . Recycled Matter . | . . . . . . . . . . . . . . Retrieved Matter . | . . . . . . . . . . . . . . Retrieved Components . | . . . . . . . . . . . . . . Parts Scanalyzed . | . . . . . . . . . . . . . . Part Schematics Acquired . | . . . . . . . . . . . . . . Parts Damaged . | . . . . . . . . . . . . . . Bothacking | -11 -10 -9 -9 -8 -7 -7 -6 -5 -5 -5 -4 -4 -4 ------------ Run | Yrd Mat Mat Sto Mat Fac Gar Fac Fac Gar Ext Fac Gar Fac Used RIF Installer 3 | . . . . . . 1 . . 1 . . 1 . Robot Detection 1 | . . . . . . . . . 1 . . . . Patrol Navigation 1 | . . . . . . . . . . . . 1 . Robots Hacked 53 | . . . . . . 3 . 7 5 12 6 10 10 Non-combat 5 | . . . . . . . . 4 . . 1 . . Combat 48 | . . . . . . 3 . 3 5 12 5 10 10 Robot Hacks Applied 58 | . . . . . . 3 . 8 5 13 7 10 12 drop_inventory 4 | . . . . . . . . 3 . . 1 . . find_garrison 3 | . . . . . . . . 1 . . 1 . 1 scatter_targeting 3 | . . . . . . . . . . 1 . . 2 spike_heat 4 | . . . . . . 1 . . . 1 . . 2 overload_power 3 | . . . . . . . . 1 . . . 1 1 amplify_resonance 1 | . . . . . . . . . . . . 1 . disable_weapons 2 | . . . . . . 1 . . . . 1 . . go_dormant 1 | . . . . . . . . . . . . 1 . overwrite_iff 19 | . . . . . . . . 2 3 4 3 4 3 formatsys_low 1 | . . . . . . . . 1 . . . . . formatsys_high 17 | . . . . . . 1 . . 2 7 1 3 3 Relay Couplers Released 57 | . . . 3 1 . 16 1 . 23 . . 13 . Machine Destruction 57 | . . . 3 1 . 16 1 . 23 . . 13 . Attached 23 | . . . . . . 2 . 2 6 4 1 6 2 Fabnet Peak Effective % . | . . . . . . . . . . . . . . Robots Rewired 9 | . . . . . . 2 . . . 6 . . 1 Allies Hacked 3 | . . . . . . . . . . . 3 . . Hacks Repelled . | . . . . . . . . . . . . . . Allies | -11 -10 -9 -9 -8 -7 -7 -6 -5 -5 -5 -4 -4 -4 -------- Run | Yrd Mat Mat Sto Mat Fac Gar Fac Fac Gar Ext Fac Gar Fac Total Allies 52 | . . . . . . 4 . 3 6 19 4 9 7 Largest Group 14 | . . . . . . 2 2 1 2 14 12 5 3 Highest-Rated Group 473 | . . . . . . 57 57 47 100 473 437 297 204 Highest-Rated Ally 116 | . . . . . . 32 32 47 51 85 81 116 106 Total Orders 1 | . . . . . . . . . . . . 1 . STAY 1 | . . . . . . . . . . . . 1 . Ally Attacks 243 | . . . . . . 14 12 4 20 23 79 53 38 Total Damage 7281 | . . . . . . 194 344 36 402 961 1829 2365 1150 Kills 41 | . . . . . . 1 4 . 1 5 14 9 7 Allies Corrupted 1 | . . . . . . . . . . . 1 . . Allies Melted 1 | . . . . . . . . . 1 . . . . Intel | -11 -10 -9 -9 -8 -7 -7 -6 -5 -5 -5 -4 -4 -4 ------- Run | Yrd Mat Mat Sto Mat Fac Gar Fac Fac Gar Ext Fac Gar Fac Active Infowar (turns) 1039 | . 645 164 . . . . 230 . . . . . . Sensors 230 | . . . . . . . 230 . . . . . . Seismic 809 | . 645 164 . . . . . . . . . . . Robot Analysis Total 1 | . 1 . . . . . . . . . . . . Derelict Logs Recovered . | . . . . . . . . . . . . . . Drone Launches . | . . . . . . . . . . . . . . Drone Recoveries . | . . . . . . . . . . . . . . Exploration | -11 -10 -9 -9 -8 -7 -7 -6 -5 -5 -5 -4 -4 -4 ------------- Run | Yrd Mat Mat Sto Mat Fac Gar Fac Fac Gar Ext Fac Gar Fac Turns Passed 14441 | 190 690 1133 1007 1557 203 1671 705 1007 2279 656 646 1581 1116 Spaces Moved 5912 | 49 262 435 267 637 126 834 343 442 995 312 301 571 338 Core 13 | 12 . . . . . . . 1 . . . . . Treads 370 | 37 262 64 . . . . . . . 4 . . 3 Legs . | . . . . . . . . . . . . . . Wheels 5529 | . . 371 267 637 126 834 343 441 995 308 301 571 335 Hover . | . . . . . . . . . . . . . . Flight . | . . . . . . . . . . . . . . Fastest Speed 50 | 50 160 120 210 110 135 135 150 135 105 135 135 135 125 Average Speed 163 | 133 160 184 210 131 135 153 150 164 146 155 163 198 217 Slowest Speed 2000 | 160 160 210 210 160 135 165 165 2000 210 320 270 225 250 Overloaded Moves . | . . . . . . . . . . . . . . Propulsion Burnouts . | . . . . . . . . . . . . . . Robots Hopped 2 | . . . . . . . . . . 2 . . . Potential Cave-ins . | . . . . . . . . . . . . . . Cave-ins Triggered . | . . . . . . . . . . . . . . Exploration Rate (%) 39 | 4 52 45 53 51 4 93 11 12 91 42 9 69 12 Regions Visited 13 Branch Regions 2 Pre-discovered Areas . | . . . . . . . . . . . . . . Known Exits Taken 3 | . . . . . 1 . . 1 . . 1 . . Unknown Exits Taken 7 | 1 1 1 1 1 . . 1 . . 1 . . . Scrap Searched . | . . . . . . . . . . . . . . Spaces Dug 16 | . . . . . . . . 4 . . . 7 5 Terrain Destroyed 352 | . . . 20 75 1 74 23 17 100 2 8 15 17 Melee 15 | . . . . . . . . 4 . . . 7 4 Projectile 57 | . . . . 16 1 . 5 3 4 2 7 6 13 AOE 277 | . . . 20 59 . 74 18 10 96 . . . . Terrain Rammed . | . . . . . . . . . . . . . . Walls Destroyed . | . . . . . . . . . . . . . . Machines Disabled . | . . . . . . . . . . . . . . Actions | -11 -10 -9 -9 -8 -7 -7 -6 -5 -5 -5 -4 -4 -4 --------- Run | Yrd Mat Mat Sto Mat Fac Gar Fac Fac Gar Ext Fac Gar Fac Total 9402 | 141 478 680 607 1183 154 1095 462 659 1637 427 406 864 609 Wait 2009 | 60 152 129 258 393 16 92 56 110 411 44 37 95 156 Move 5896 | 48 261 434 266 636 126 832 342 442 993 307 301 570 338 Hop 2 | . . . . . . . . . . 2 . . . Pick Up 194 | 10 16 28 4 15 5 15 12 11 36 7 5 21 9 Fast Attach 71 | 1 . 7 5 5 . 3 2 6 14 4 6 9 9 Attach 111 | 5 4 5 1 8 3 10 11 9 31 3 1 10 10 Detach 14 | . . . . 1 . . 2 5 6 . . . . Swap 91 | 1 2 11 7 14 . 13 2 9 6 5 8 8 5 Drop 140 | . 4 21 11 20 2 9 3 12 18 1 11 21 7 Fire 684 | 16 38 45 55 90 2 57 32 49 83 42 31 73 71 Melee 62 | . . . . . . . . 6 23 . 4 25 4 Ram 3 | . . . . 1 . . . . . . 2 . . Kick . | . . . . . . . . . . . . . . Crush 1 | . 1 . . . . . . . . . . . . Escape Stasis 80 | . . . . . . 40 . . 8 . . 32 . Rewire 28 | . . . . . . 24 . . . 4 . . . Trap . | . . . . . . . . . . . . . . Miscellaneous 16 | . . . . . . . . . 8 8 . . . Route ------- -11/Scrapyard -10/Materials (discovered 2 exits: *Mat / [*Min]) -9/Materials (discovered 3 exits: *Mat / *Sto x2) -9/Storage -8/Materials -7/Factory -7/Garrison (discovered 3 exits: *Fac x3) -6/Factory -5/Factory -5/Garrison (discovered 3 exits: *Ext x3) -5/Extension -4/Factory -4/Garrison (discovered 2 exits: [*Fac x2]) -4/Factory History --------- Turn | Location | Event 5 | -11/Scrapyard | Discovered new exit (range 15) 191 | -11/Scrapyard | Entered Materials 314 | -10/Materials | Build established: Mutant 742 | -10/Materials | Discovered new exit (range 10) 865 | -10/Materials | Discovered new exit (range 3) 881 | -10/Materials | Entered another Materials area 881 | -9/Materials | Evolved 2 slots: Utility x1, Weapon x1 1089 | -9/Materials | Lost 4 parts (2n2u) 1134 | -9/Materials | Discovered new exit (range 15) 1381 | -9/Materials | Build established: Tank 1887 | -9/Materials | Discovered new exit (range 15) 1955 | -9/Materials | Discovered new exit (range 10) 2014 | -9/Materials | Entered Storage 2106 | -9/Storage | Garrison activated, responded to threat 2210 | -9/Storage | Destroyed 10 combat bots 2295 | -9/Storage | Core integrity fell below 50% 2426 | -9/Storage | Destroyed 8 combat bots 2990 | -9/Storage | Discovered new exit (range 15) 3021 | -9/Storage | Entered Materials 3021 | -8/Materials | Evolved 2 slots: Propulsion x1, Utility x1 3821 | -8/Materials | First assault squad dispatched 3870 | -8/Materials | Destroyed 7 combat bots 4484 | -8/Materials | Discovered new exit (range 4) 4578 | -8/Materials | Entered Factory 4578 | -7/Factory | Evolved 2 slots: Utility x1, Weapon x1 4781 | -7/Factory | Identified exit to Garrison 4781 | -7/Factory | Entered Garrison 4809 | -7/Garrison | Triggered checkpoint 5038 | -7/Garrison | Phase Generator disabled 5069 | -7/Garrison | Installed Relay Interface Framework 5445 | -7/Garrison | Triggered checkpoint 5541 | -7/Garrison | Triggered checkpoint 5585 | -7/Garrison | Garrison Relay disabled 5609 | -7/Garrison | Discovered new exit (range 8) 5730 | -7/Garrison | Destroyed 7 combat bots 5824 | -7/Garrison | Discovered new exit (range 3) 5851 | -7/Garrison | Learned Factory security intel 5890 | -7/Garrison | Rescued a captive Derelict 5959 | -7/Garrison | Triggered checkpoint 5978 | -7/Garrison | Garrison Relay disabled 6095 | -7/Garrison | Triggered checkpoint 6185 | -7/Garrison | Discovered new exit (range 13) 6249 | -7/Garrison | Triggered checkpoint 6279 | -7/Garrison | Garrison Relay disabled 6315 | -7/Garrison | Garrison Relay disabled 6452 | -7/Garrison | Entered Factory 6452 | -6/Factory | Accompanied by 2 allies 6452 | -6/Factory | Evolved 2 slots: Utility x2 6587 | -6/Factory | Build established: Bothacker-Gunner 6624 | -6/Factory | Central database locked down 7056 | -6/Factory | Lost 3 parts (1p1u1w) 7083 | -6/Factory | Destroyed 8 combat bots 7114 | -6/Factory | Discovered new exit (range 8) 7152 | -6/Factory | First assault squad dispatched 7157 | -6/Factory | Entered another Factory area 7157 | -5/Factory | Evolved 2 slots: Power x1, Utility x1 7301 | -5/Factory | Build established: Bothacker-Mutant 7651 | -5/Factory | Lost 3 parts (1n2w) 8164 | -5/Factory | Identified exit to Garrison 8164 | -5/Factory | Entered Garrison 8252 | -5/Garrison | Triggered checkpoint 8342 | -5/Garrison | Build established: Bothacker-Tank 8356 | -5/Garrison | Garrison Relay disabled 8583 | -5/Garrison | Phase Generator disabled 8631 | -5/Garrison | Triggered checkpoint 8631 | -5/Garrison | Triggered checkpoint 8701 | -5/Garrison | Destroyed 9 combat bots 8747 | -5/Garrison | Lost 9 parts (2p1n3u3w) 8903 | -5/Garrison | Discovered new exit (range 10) 8922 | -5/Garrison | Build established: Bothacker-Mutant 8946 | -5/Garrison | Expanded RIF knowledge: Robot Detection 8976 | -5/Garrison | Triggered checkpoint 9076 | -5/Garrison | Lost 13 parts (2p3n3u5w) 9120 | -5/Garrison | Garrison Relay disabled 9244 | -5/Garrison | Rescued a captive Derelict 9284 | -5/Garrison | Triggered checkpoint 9394 | -5/Garrison | Core integrity fell below 50% 9590 | -5/Garrison | Garrison Relay disabled 9628 | -5/Garrison | Discovered new exit (range 64) 9628 | -5/Garrison | Discovered new exit (range 22) 9628 | -5/Garrison | Discovered new exit (range 51) 9672 | -5/Garrison | Triggered checkpoint 9888 | -5/Garrison | Build established: Bothacker-Tank 10069 | -5/Garrison | Garrison Relay disabled 10071 | -5/Garrison | Garrison Relay disabled 10359 | -5/Garrison | Triggered checkpoint 10380 | -5/Garrison | Garrison Relay disabled 10443 | -5/Garrison | Entered Extension 10527 | -5/Extension | Lost 3 allies 10986 | -5/Extension | Spotted B-75 Beast 10996 | -5/Extension | Rescued a captive Derelict 10996 | -5/Extension | Rescued a captive Derelict 11009 | -5/Extension | Assimilated Beast 6a with formatsys_high 11043 | -5/Extension | First assault squad dispatched 11093 | -5/Extension | Discovered new exit (range 3) 11099 | -5/Extension | Entered Factory 11099 | -4/Factory | Accompanied by 12 allies 11099 | -4/Factory | Evolved 2 slots: Utility x2 11463 | -4/Factory | Lost 3 allies 11531 | -4/Factory | Lost 9 allies 11586 | -4/Factory | Found Hvy. Insulated Plating 11599 | -4/Factory | First assault squad dispatched 11745 | -4/Factory | Identified exit to Garrison 11745 | -4/Factory | Entered Garrison 11841 | -4/Garrison | Triggered checkpoint 11880 | -4/Garrison | Garrison Relay disabled 11931 | -4/Garrison | Expanded RIF knowledge: Patrol Navigation 12019 | -4/Garrison | Spotted B-86 Titan 12021 | -4/Garrison | Assimilated Titan 7a with formatsys_high 12104 | -4/Garrison | Spotted B-86 Titan 12117 | -4/Garrison | Destroyed B-86 Titan 12346 | -4/Garrison | Spotted Striker 12378 | -4/Garrison | Destroyed Striker 12387 | -4/Garrison | Lost 4 parts (3u1w) 12397 | -4/Garrison | Triggered checkpoint 12408 | -4/Garrison | Triggered checkpoint 12459 | -4/Garrison | Triggered checkpoint 12587 | -4/Garrison | Rescued a captive Derelict 12589 | -4/Garrison | Rescued a captive Derelict 12619 | -4/Garrison | Discovered new exit (range 12) 12735 | -4/Garrison | Garrison Relay disabled 13051 | -4/Garrison | Triggered checkpoint 13143 | -4/Garrison | Triggered checkpoint 13273 | -4/Garrison | Discovered new exit (range 11) 13326 | -4/Garrison | Entered Factory 13326 | -4/Factory | Accompanied by 3 allies 13576 | -4/Factory | First assault squad dispatched 13934 | -4/Factory | Lost 3 allies 14440 | -4/Factory | System corruption reached 10% 14442 | -4/Factory | Self-destructed Last Messages --------------- 14413_ Slug penetrates K-01 Serf. 14413_ Slug penetrates Terminal. 14413_ Penetrated by Slug. 14415_ K-01 Serf collects debris. 14415_ Slug penetrates Wall. 14415_ Penetrated by Slug. 14417_ Slug penetrates Construction Platform. 14417_ Construction Platform disabled. 14418_ Penetrated by Slug. 14418_ K-01 Serf collects debris. 14422_ Penetrated by Slug. 14423_ Acquired Hrd. Medium Armor Plating. 14424_ Penetrated by Slug. 14425_ Acquired Imp. Core Shielding. 14432_ QNA CO1LNWCZRAH&J>YMX|EGL&7 14432_ Com. Wheel+ destroyed. 14435_ Imp. Remote Datajack destroyed. 14440_ Penetrated by Slug. 14440_ Wheel+ destroyed. 14442_ Enh. Hardcell Cannon destroyed. Map ----- +----------------------------------------------------+ | ?????????????????????????????????????????????????? | | ?????????????????????????????????????????????????? | | ?????????????????????????????????????????????????? | | ?????????????????????????????????????????????????? | | ?????????????????????????????????????????????????? | | ?????????????????????????????????????????????????? | | ?????????????????????????????????????????????????? | | ?????????????????????????????????????????????????? | | ?????????????????????????????????????????????????? | | ?????????????????????????????????????????????????? | | ???????????????? ???????????????????????????? | | ???????????????# ??????????????????????????? | | ???????????????# "??????????????????????????? | | ???????????????# "??????????????????????????? | | ???????????????# ""?????????????????????????? | | ???????????????# ""?????????????????????????? | | ???????????????# ?????? ????????????????? | | ???????##+###### """"""" """????????????????? | | ??????? """"""" """""??????????????? | | ???????? """"""" """""??????????????? | | ????????? """"""" """"""" ??????????? | | ????# ?????????? | | ???? """" ?????????? | | ????# """" !!! ????????? | | ????# """" h!! p ????????? | | ????# """" h @ p ????????? | | ????# """"R k#########;######???????????????? | | ??????# """" #??????????????????????????????? | | ??????# "" " #??????????????????????????????? | | ??????# #??????????????????????????????? | | ??????# #??????????????????????????????? | | ??????# #??????????????????????????????? | | ??????# #??????????????????????????????? | | ??????# ##?????????????????????????????? | | ??????# #?????????????????????????????? | | ??????# #?????????????????????????????? | | ??????# " #?????????????????????????????? | | ??????# "T" #?????????????????????????????? | | ??????+ """ #?????????????????????????????? | | ??????### #### #?????????????????????????????? | | ??????###"#### #?????????????????????????????? | | ??????#= ! !# #?????????????????????????????? | | ??????# # #?????????????????????????????? | | ??????# [! [# +?????????????????????????????? | | ??????# [/ / #?????????????????????????????? | | ??????# [ %% # #?????????????????????????????? | | ??????# =% #?????????????????????????????? | | ??????#%*%[% " #?????????????????????????????? | | ########==#"## #?????????????????????????????? | | =[%%["#?? #?????????????????????????????? | +----------------------------------------------------+ Best States ------------- Heat Dissipation 98 Coolant Potential 50 Energy Generation 39 Energy Capacity 690 Matter Stores 300 Matter Capacity 300 Sight Range 16 Robot Scan Range 16 Terrain Scan Density 10 Base Temperature (-) 150 Armor Coverage 1050 Resistance: KI 30 Resistance: TH 25 Resistance: EM 30 Core Shielding 30 Power Shielding 90 Propulsion Shielding 33 Utility Shielding 66 Point Defense Rating 80 Phase Shifting 15 Evasion (%) 55 Targeting Accuracy 11 Target Analysis 6 Recoil Reduction 2 Particle Charging 15 Relay Coupler Types 6 Relay Coupler Value 134 Item Schematics ----------------- None Robot Schematics ------------------ None Fabricated ------------ Nothing Repaired ---------- Nothing Studied --------- Arm. Huge Wheel | -8/Materials | Hacked Rocket Launcher | -8/Materials | Hacked Wheel | -8/Materials | Hacked Remote Datajack | -6/Factory | Hacked Gatling Laser | -5/Factory | Hacked Com. Wheel | -5/Factory | Hacked Alien Tech Used ----------------- None Achievements -------------- None Challenges ------------ None Game ------ Seed RocketHellfirePit Manual? 0 Play Time 01:59:24 Cumulative 138.6 hours Start 2025.12.13 @ 16:17:31 End 2025.12.19 @ 19:47:49 Sessions 7 Manual Loads 0 Difficulty Rogue Special Mode None Game No. 154 Rogue 154 Adventurer 0 Explorer 0 Win Type - Total 2 Types 2/0/0/0/0/0/0/0/0/0 Lore% 74 Gallery% 63 Achievement% 45 Wizard Run 0 Options --------- Layout 1 ASCII 0 Keyboard 0 Movement Mouse Keybinds 0 Fullscreen 1 Font 32/SmallcapsGlow Map View 50x35 Zoom Use 0% Tactical HUD 1 Map Filters NONE Filters NONE Steam 1 RUN: 49509e79-f468-4eab-865e-91cdf374b6e2